Cogmind - Beta 16 @@@ ROGUE MODE // 2025.11.06 @ 02:43:34 Player: souux Result: Destroyed by P-60 Hacker with Shock Rifle Performance ------------- Evolutions (2) 1000 Regions Visited (4) 800 Robots Destroyed (118) 590 Value Destroyed (3976) 3976 Prototype IDs (16) 320 Alien Tech Used (0) 0 Bonus (1155) 1155 TOTAL SCORE: 7841 Bonus ------- High Alert Combat Kills 455 Entered Garrisons 200 Used RIF Installer 500 Cogmind --------- Core Integrity 0/550 Matter 239/300 Energy 280/280 System Corruption 37% Temperature Cool (0) Movement Treading (240) Ox1 Location -8/Garrison Parts ------- > --- POWER (1) -------- Heavy Ion Engine > --- PROPULSION (4) --- Light Treads Light Treads Light Treads > --- UTILITY (4) ------ Improved Cooling System High-capacity Storage Unit Advanced Targeting Computer Light Armor Plating > --- WEAPON (2) ------- Gauss Rifle Assault Cannon > --- INVENTORY (20) --- Light Treads High-capacity Storage Unit Structural Scanner Advanced Visual Processing Unit Improved Terrain Scanner Seismic Detector Improved Shield Generator Relay Coupler [NC] (29) Relay Coupler [Swarmer] (23) Relay Coupler [Grunt] (22) Relay Coupler [Grunt] (21) Heavy EM Shotgun Heavy Assault Rifle Heavy Assault Rifle Proton Missile Launcher Axe Peak State ------------ > --- POWER ------------ Nuclear Core Light Nuclear Core > --- PROPULSION ------- Light Treads Light Treads Aluminum Leg Carbon-fiber Leg Carbon-fiber Leg > --- UTILITY ---------- Advanced Heat Sink Medium Storage Unit Heavy Armor Plating Tower Shield > --- WEAPON ----------- Subdweller Beam Cannon Subdweller Beam Cannon > --- INVENTORY -------- Ion Engine Light Nuclear Core Structural Scanner Advanced Visual Processing Unit Improved Terrain Scanner Seismic Detector Hardened Light Armor Plating Beam Rifle Beam Cannon Battle Cannon [Rating: 52] Favorites ----------- Power Ion Engine Engine Ion Engine Power Core Light Nuclear Core Propulsion Light Treads Treads Light Treads Leg Carbon-fiber Leg Wheel Wheel Utility Medium Storage Unit Device Advanced Heat Sink Storage Medium Storage Unit Processor Advanced Targeting Computer Protection Hardened Light Armor Plating Weapon Subdweller Beam Cannon Energy Gun Heavy EM Shotgun Energy Cannon Subdweller Beam Cannon Ballistic Gun Subdweller Machine Gun Ballistic Cannon Assault Cannon Launcher Proton Missile Launcher Slashing Weapon Axe Build | -11 -10 -10 -8 -8 ------- Run | Yrd Mat Sub Mat Gar Slots Evolved 4 | . . . 4 . Power . | . . . . . Propulsion 2 | . . . 2 . Utility 2 | . . . 2 . Weapon . | . . . . . Parts Attached 101 | 9 12 14 39 27 Power 18 | 1 3 4 8 2 Engine 13 | 1 3 4 4 1 Core 5 | . . . 4 1 Reactor . | . . . . . Propulsion 34 | 4 1 2 13 14 Treads 29 | 2 1 2 10 14 Leg 3 | . . . 3 . Wheel 2 | 2 . . . . Hover . | . . . . . Flight . | . . . . . Utility 26 | 2 5 3 12 4 Device 10 | 1 1 2 5 1 Storage 4 | 1 2 . 1 . Processor 2 | . . . 2 . Hackware . | . . . . . Protection 10 | . 2 1 4 3 Artifact . | . . . . . Weapon 23 | 2 3 5 6 7 Energy Gun 7 | 1 1 . 2 3 Energy Cannon 6 | . 2 3 1 . Ballistic Gun 6 | 1 . 2 1 2 Ballistic Cannon 2 | . . . 2 . Launcher 1 | . . . . 1 Special Weapon . | . . . . . Impact Weapon . | . . . . . Slashing Weapon 1 | . . . . 1 Piercing Weapon . | . . . . . Special Melee Weapon . | . . . . . Unidentified Prototypes 4 | . . . 4 . Corrupted Parts 8 | . . . 2 6 System Corruption 34 | . . . 9 25 Parts Lost 21 | . 2 3 5 11 Power 2 | . . . 1 1 Propulsion 7 | . 1 1 . 5 Utility 5 | . . . 2 3 Weapon 7 | . 1 2 2 2 Highest Loss Streak 5 | . 1 1 2 5 To Critical Strikes . | . . . . . Average Backups 11 | 5 9 8 11 18 Power . | . . . 1 . Propulsion 2 | 3 3 1 1 3 Utility 5 | . 3 4 5 8 Weapon 3 | . 2 2 2 6 Tool/Special . | . . . . . Unused Backups 35 | . 8 5 9 13 Power 1 | . . . . 1 Propulsion 7 | . 5 1 1 . Utility 17 | . 1 2 4 10 Weapon 10 | . 2 2 4 2 Tool/Special . | . . . . . Average Slot Usage (%) 96 | . 100 97 92 99 Engine 8 | . 14 14 4 3 Core 2 | . . . 5 5 Treads 29 | . 28 25 29 35 Leg 1 | . . . 3 . Device 7 | . 8 2 11 9 Storage 11 | . 14 14 8 9 Processor 3 | . . . 4 9 Protection 8 | . 5 11 8 8 Energy Gun 6 | . 10 . 6 12 Energy Cannon 10 | . 14 17 8 . Ballistic Gun 3 | . 2 10 . 1 Peak Build Rating 52 | 7 10 14 52 33 Average Rating 21 | 5 8 11 32 30 On Entrance 12 | . 7 9 14 33 Avg Prop Armor Cover (%) 3 | . . . 3 . Naked Turns . | . . . . . Heaviest Build 92 | 13 26 36 92 64 Greatest Support 100 | 40 40 40 100 80 Greatest Overweight (x) 2 | . . 1 2 . Average Overweight (x) . | . . . . . Largest Inventory Capacity 20 | 8 10 10 20 20 Average Capacity 12 | 7 9 10 12 20 Most Carried 20 | 8 10 10 20 20 Average Carried 11 | 5 9 8 11 18 Final Capacity 20 | 8 10 10 20 20 Final Carried 20 | 8 10 10 20 16 Class Distribution -------------------- 65% | Scavenger-Mutant 34% | Mutant Dominant Class ---------------- Mutant | -10/Materials Mutant | -10/Subcaves Scavenger-Mutant | -8/Materials Scavenger-Mutant | -8/Garrison Resources | -11 -10 -10 -8 -8 ----------- Run | Yrd Mat Sub Mat Gar Matter Collected 2122 | 323 206 314 641 638 Remotely . | . . . . . Salvage Created 4467 | 130 780 345 1392 1820 Parts 288 | 11 73 18 68 118 Haulers Intercepted 5 | . 2 . 3 . Recyclers Shooed . | . . . . . Parts Field Recycled . | . . . . . Retrieved Matter . | . . . . . Parts Self-Destructed 10 | . . 10 . . Prevented . | . . . . . Parts Restored . | . . . . . Kills | -11 -10 -10 -8 -8 ------- Run | Yrd Mat Sub Mat Gar Combat Hostiles Destroyed 97 | . 24 9 21 43 Guns 44 | . 8 2 2 32 Cannons 42 | . 13 6 17 6 AOE 5 | . 3 . . 2 Classes Destroyed 17 | 2 7 1 3 4 Worker 1 | . . . 1 . Builder 3 | . 1 . 2 . Tunneler 2 | 2 . . . . Hauler 5 | . 2 . 3 . Recycler 3 | 1 . . 2 . Operator 1 | . 1 . . . Watcher 6 | . 2 . 4 . Swarmer 32 | . 15 1 3 13 Grunt 26 | . 7 . 9 10 Brawler 1 | . . . . 1 Duelist 1 | . . . . 1 Sentry 17 | . . . 7 10 Specialist 7 | . . . 2 5 Hunter 2 | . . . . 2 Programmer 1 | . . . . 1 Artisan 1 | . . 1 . . Subdweller 10 | . 2 8 . . Best Kill Streak 7 | 2 7 2 4 5 Combat Bots Only 6 | . 6 2 3 5 Max Kills in Single Turn 3 | 1 3 1 3 3 Gunslinging . | . . . . . Exploded 3 | . 3 . . 1 Melee . | . . . . . Uniques/NPCs Destroyed . | . . . . . Combat | -11 -10 -10 -8 -8 -------- Run | Yrd Mat Sub Mat Gar Hostile Shots Fired 653 | . 77 52 164 360 Missed 190 | . 19 16 36 119 Hits 463 | . 58 36 128 241 Projectile 463 | . 58 36 128 241 Critical Strikes 17 | . . . 6 11 Damage Taken 6599 | . 668 771 1795 3365 Core 813 | . 99 150 177 387 Absorbed by Shields 110 | . . . 110 . Core Remaining (%) 50 | 100 . . . . Volleys Fired 308 | 11 48 63 79 107 Largest 2 | 2 2 2 2 2 Hottest 160 | 60 120 120 160 100 Shots Fired 551 | 14 93 111 156 177 Gun 272 | 14 44 54 19 141 Cannon 277 | . 49 57 137 34 Launcher 2 | . . . . 2 Special . | . . . . . Kinetic 133 | 11 6 54 16 46 Thermal 227 | . 49 57 121 . Explosive . | . . . . . Electromagnetic 191 | 3 38 . 19 131 Robot Hit Streak 22 | 4 8 11 20 22 Robot Miss Streak 5 | 4 4 2 4 5 Penetration Max . | . . . . . Secondary Targets 3 | . . . . 3 Max Gunslinging Chain 1 | . . . . 1 Shots Hit Robots 346 | 7 52 49 106 132 Core Hits 178 | 4 37 13 45 79 Critical Kills 3 | . . 2 1 . Critical Parts Destroyed 1 | . . 1 . . Critical Strikes 7 | . . 3 1 3 Meltdown 2 | . . 1 1 . Destroy 2 | . . 2 . . Blast 1 | . . . . 1 Corrupt 2 | . . . . 2 Melee Attacks 6 | . . . . 6 Impact . | . . . . . Slashing 6 | . . . . 6 Piercing . | . . . . . Sneak Attacks . | . . . . . Combat Hostiles . | . . . . . Follow-up Attacks . | . . . . . Damage Inflicted 8070 | 96 1033 1093 3078 2770 Guns 3034 | 94 320 404 304 1912 Cannons 4102 | . 579 689 2276 558 Explosions 868 | . 134 . 434 300 Melee . | . . . . . Ramming 66 | 2 . . 64 . Kinetic 1457 | 67 23 404 251 712 Thermal 3768 | . 641 689 2175 263 Explosive 284 | . . . 284 . Electromagnetic 2495 | 27 369 . 304 1795 Impact . | . . . . . Slashing . | . . . . . Piercing . | . . . . . Highest Corruption 37 | . 2 2 9 37 Average Corruption 11 | . 2 1 8 19 Corruption Purged 2 | . . 2 . . Corruption Blocked . | . . . . . Effects 123 | . 13 10 21 79 Message Errors 36 | . 2 . 5 29 Matter Fused 29 | . 7 4 4 14 Heat Flow Errors 12 | . 3 2 3 4 Energy Discharges 10 | . . 3 1 6 Parts Rejected 2 | . . . . 2 Data Loss (minor) 9 | . 1 . 2 6 Data Loss (major) 9 | . . . 2 7 Misfires 8 | . . . 4 4 Alerts 4 | . . 1 . 3 Weapon Failures 4 | . . . . 4 Overload Shots . | . . . . . Overflow Damage 211 | . 5 . 206 . Projectiles 65 | . . . 65 . Explosions 146 | . 5 . 141 . Melee . | . . . . . Knockbacks 3 | . . . 1 2 Impact . | . . . . . Kinetic 3 | . . . 1 2 Secondary . | . . . . . Self-Inflicted Damage 293 | . 40 . 121 132 Shots 7 | . 1 . 2 4 Rammed 8 | 2 . . 6 . Targets Rammed 10 | 2 . . 8 . Kicked . | . . . . . Crushed 2 | . . . 2 . Highest Temperature 457 | . 457 148 415 233 Average Temperature 102 | . 105 23 141 41 Received Heat Transfer 1725 | . 138 78 663 846 Effects 9 | . 2 . 7 . Shutdowns 2 | . 1 . 1 . Energy Bleed 1 | . . . 1 . Interference 5 | . 1 . 4 . Damage (minor) 1 | . . . 1 . Siege Activations . | . . . . . Martial Activations . | . . . . . Shielding Activations . | . . . . . Robots Disrupted . | . . . . . Combat Hostiles . | . . . . . Robots Corrupted 3 | . . . . 3 Combat Hostiles 3 | . . . . 3 Parts Fried 12 | . . . 3 9 Impact Corruptions . | . . . . . Robots Melted 3 | . . 1 2 . Combat Hostiles 3 | . . 1 2 . Parts Melted 14 | . 2 3 9 . Heat Transferred 6187 | . 1321 1110 3406 350 Parts Sabotaged . | . . . . . Parts Stolen . | . . . . . Parts Stripped . | . . . . . Power Chain Reactions 7 | . 1 . 2 4 Alert | -11 -10 -10 -8 -8 ------- Run | Yrd Mat Sub Mat Gar Maximum Alert Level 4 | . 1 . 1 4 Low Security (%) 56 | 100 55 . 92 2 Level 1 21 | . 44 . 7 23 Level 2 10 | . . . . 34 Level 3 5 | . . . . 19 Level 4 6 | . . . . 20 Level 5 . | . . . . . High Security . | . . . . . Max Security . | . . . . . Peak Influence 1283 | 10 313 . 225 1283 Initial 141 | . . . . 141 Average 284 | 1 143 . 109 663 Influence Increases 2776 | 15 656 60 793 1252 Destroy 0b10 Robot/C 1740 | . 440 20 420 860 Destroy 0b10 Robot/NC 105 | 15 30 . 60 . Destroy Leader 272 | . 98 10 134 30 Successful Hack 41 | . 20 . 21 . Disable Machine 105 | . 60 . 45 . Anti-Garrison Action 300 | . . . . 300 Destroy Structure 78 | . 8 . 23 47 Lose Combat Pursuer 135 | . . 30 90 15 Influence Decreases 1493 | 15 438 278 576 186 Entered New Map 182 | . . 106 . 76 Time Decay 1121 | 15 418 162 526 . Lost Part 190 | . 20 10 50 110 Squads Dispatched 4 | . 3 . 1 . Investigation 1 | . 1 . . . Extermination . | . . . . . Reinforcement 3 | . 2 . 1 . Assault . | . . . . . Garrison . | . . . . . Intercept . | . . . . . Searches Triggered . | . . . . . Construction Impeded . | . . . . . Haulers Reinforced . | . . . . . Active Scanning Responses . | . . . . . Cargo Convoy Interrupts . | . . . . . Stealth | -11 -10 -10 -8 -8 --------- Run | Yrd Mat Sub Mat Gar Distress Signals 4 | . 2 . 2 . Communications Jammed . | . . . . . Distress Signals . | . . . . . Times Spotted 121 | . 32 12 31 46 Peak Tracking Total 5 | . 5 3 3 5 Tactical Retreats 6 | . . 2 3 1 Traps | -11 -10 -10 -8 -8 ------- Run | Yrd Mat Sub Mat Gar Traps Triggered 6 | . 2 1 1 2 Indirectly . | . . . . . Trap Hack Attempts . | . . . . . Triggered . | . . . . . Disarmed . | . . . . . Reprogrammed . | . . . . . Reused . | . . . . . Traps Extracted . | . . . . . Installed . | . . . . . Triggered . | . . . . . Machines | -11 -10 -10 -8 -8 ---------- Run | Yrd Mat Sub Mat Gar Machines Disabled 10 | . 4 1 3 2 Max in Single Turn 2 | . 2 1 1 1 Garrison Relay 2 | . . . . 2 Machines Repaired . | . . . . . Machines Dismantled . | . . . . . Machines Sabotaged . | . . . . . Overloaded Fab Kills . | . . . . . Hacking | -11 -10 -10 -8 -8 --------- Run | Yrd Mat Sub Mat Gar Machines Accessed 21 | . 6 4 9 2 Terminals 14 | . 6 . 6 2 Fabricators . | . . . . . Repair Stations . | . . . . . Recycling Units 2 | . . . 2 . Scanalyzers . | . . . . . Garrison Access 1 | . . . 1 . Total Hacks 56 | . 18 8 27 3 Successful 31 | . 12 8 11 . Failed 25 | . 6 . 16 3 Catastrophic 3 | . . . 2 1 Database Lockouts . | . . . . . Manual 37 | . 18 . 19 . Terminals 40 | . 18 . 19 3 Fabricators . | . . . . . Repair Stations . | . . . . . Recycling Units 6 | . . . 6 . Scanalyzers . | . . . . . Garrison Access 2 | . . . 2 . Terminal Hacks 9 | . 1 8 . . Record 5 | . . 5 . . Open Door 1 | . . 1 . . Hauler Manifests 1 | . 1 . . . Proto ID Catalog 1 | . . 1 . . Release Object 1 | . . 1 . . Fabricator Hacks . | . . . . . Repair Station Hacks . | . . . . . Recycling Unit Hacks 1 | . . . 1 . Retrieve Components 1 | . . . 1 . Scanalyzer . | . . . . . Garrison Access Hacks 1 | . . . 1 . Unlock Access 1 | . . . 1 . Unauthorized Hacks 20 | . 11 . 9 . Terminals 20 | . 11 . 9 . Botnet 6 | . 4 . 2 . Operators 2 | . 1 . 1 . Skim 12 | . 6 . 6 . Fabricators . | . . . . . Repair Stations . | . . . . . Recycling Units . | . . . . . Scanalyzers . | . . . . . Garrison Access . | . . . . . Data Cores Recovered . | . . . . . Used . | . . . . . Hacking Detections 14 | . 4 . 8 2 Full Trace Events . | . . . . . Feedback Events . | . . . . . Feedback Blocked . | . . . . . Robot Schematics Acquired . | . . . . . Robots Built . | . . . . . Authchips . | . . . . . Time . | . . . . . Total Robot Build Rating . | . . . . . Part Schematics Acquired . | . . . . . Parts Built . | . . . . . Authchips . | . . . . . Time . | . . . . . Total Part Build Rating . | . . . . . Part Studies Acquired . | . . . . . Parts Repaired . | . . . . . Time . | . . . . . Parts Recycled . | . . . . . Recycled Matter . | . . . . . Retrieved Matter . | . . . . . Retrieved Components 10 | . . . 10 . Parts Scanalyzed . | . . . . . Part Schematics Acquired . | . . . . . Parts Damaged . | . . . . . Bothacking | -11 -10 -10 -8 -8 ------------ Run | Yrd Mat Sub Mat Gar Used RIF Installer 1 | . . . . 1 Robots Hacked . | . . . . . Non-combat . | . . . . . Combat . | . . . . . Robot Hacks Applied . | . . . . . Relay Couplers Released 7 | . . . . 7 Machine Destruction 7 | . . . . 7 Fabnet Peak Effective % . | . . . . . Robots Rewired . | . . . . . Allies Hacked . | . . . . . Hacks Repelled . | . . . . . Allies | -11 -10 -10 -8 -8 -------- Run | Yrd Mat Sub Mat Gar Total Allies . | . . . . . Largest Group . | . . . . . Highest-Rated Group . | . . . . . Highest-Rated Ally . | . . . . . Total Orders . | . . . . . Ally Attacks . | . . . . . Total Damage . | . . . . . Kills . | . . . . . Allies Corrupted . | . . . . . Allies Melted . | . . . . . Intel | -11 -10 -10 -8 -8 ------- Run | Yrd Mat Sub Mat Gar Active Infowar (turns) 1541 | 44 912 181 404 . Terrain 67 | . . . 67 . Structural 264 | . . . 264 . Seismic 1469 | 44 912 181 332 . Robot Analysis Total . | . . . . . Derelict Logs Recovered 1 | . . 1 . . Drone Launches . | . . . . . Drone Recoveries . | . . . . . Exploration | -11 -10 -10 -8 -8 ------------- Run | Yrd Mat Sub Mat Gar Turns Passed 8672 | 114 1556 2427 2681 1894 Spaces Moved 3829 | 64 699 1059 1102 905 Core 3 | 3 . . . . Treads 3649 | 13 699 1059 973 905 Legs 129 | . . . 129 . Wheels 48 | 48 . . . . Hover . | . . . . . Flight . | . . . . . Fastest Speed 50 | 50 160 160 160 160 Average Speed 165 | 94 160 170 171 160 Slowest Speed 260 | 160 160 240 260 160 Overloaded Moves . | . . . . . Propulsion Burnouts . | . . . . . Robots Hopped . | . . . . . Potential Cave-ins . | . . . . . Cave-ins Triggered . | . . . . . Exploration Rate (%) 59 | 6 100 47 63 82 Regions Visited 4 Branch Regions 1 Pre-discovered Areas 4 | . 1 1 2 . Known Exits Taken 2 | . 1 . 1 . Unknown Exits Taken 2 | 1 . 1 . . Scrap Searched 3 | . . 3 . . Spaces Dug 4 | . . . 2 2 Terrain Destroyed 42 | . 3 1 24 14 Melee 2 | . . . . 2 Projectile 22 | . . 1 20 1 AOE 18 | . 3 . 4 11 Terrain Rammed . | . . . . . Walls Destroyed . | . . . . . Machines Disabled . | . . . . . Actions | -11 -10 -10 -8 -8 --------- Run | Yrd Mat Sub Mat Gar Total 5633 | 100 1054 1573 1744 1162 Wait 1123 | 2 252 404 403 62 Move 3827 | 64 698 1058 1102 905 Hop . | . . . . . Pick Up 121 | 13 20 14 52 22 Fast Attach 9 | 2 . 1 6 . Attach 40 | 5 2 6 15 12 Detach . | . . . . . Swap 89 | 2 12 13 33 29 Drop 101 | . 22 14 46 19 Fire 308 | 11 48 63 79 107 Melee 6 | . . . . 6 Ram . | . . . . . Kick . | . . . . . Crush 9 | 1 . . 8 . Escape Stasis . | . . . . . Rewire . | . . . . . Trap . | . . . . . Miscellaneous . | . . . . . Route ------- -11/Scrapyard -10/Materials (discovered 6 exits: [*Mat x3] / [*Min x2] / *Sub) -10/Subcaves -8/Materials (discovered 4 exits: *Fac x3 / Gar) -8/Garrison (discovered 3 exits: [*Mat x3]) History --------- Turn | Location | Event 14 | -11/Scrapyard | Discovered new exit (range 15) 115 | -11/Scrapyard | Entered Materials 306 | -10/Materials | Build established: Mutant 373 | -10/Materials | Discovered new exit (range 16) 752 | -10/Materials | Discovered new exit (range 15) 868 | -10/Materials | Discovered new exit (range 15) 1015 | -10/Materials | Derelicts attacked the area 1093 | -10/Materials | Discovered new exit (range 15) 1258 | -10/Materials | Discovered new exit (range 9) 1446 | -10/Materials | Learned Storage security intel 1493 | -10/Materials | Identified exit to Subcaves 1554 | -10/Materials | Learned Storage emergency access door positions 1579 | -10/Materials | Learned location of Recycling (-9) 1606 | -10/Materials | Learned Storage garrison access intel 1634 | -10/Materials | Learned location of 1 exit from Recycling 1670 | -10/Materials | Loaded intel: 1 repair station location 1671 | -10/Materials | Entered Subcaves 1896 | -10/Subcaves | Core integrity fell below 50% 1938 | -10/Subcaves | Shifting Twisted Machinery released Shrapnel Trap 1949 | -10/Subcaves | A swath of the cavern ceiling suddenly collapsed 1959 | -10/Subcaves | Learned Materials garrison access intel 2163 | -10/Subcaves | Shifting Twisted Machinery released Humpback 2175 | -10/Subcaves | Shifting Twisted Machinery released Sub. Power Source 2207 | -10/Subcaves | Build established: Scavenger-Mutant 2298 | -10/Subcaves | Discovered new exit (range 7) 2492 | -10/Subcaves | Visited Clippyterm 2497 | -10/Subcaves | Learned location of Extension (-5) 2659 | -10/Subcaves | Shifting Twisted Machinery released Sub. Beam Cannon 2672 | -10/Subcaves | Shifting Twisted Machinery released Sub. Beam Cannon 2819 | -10/Subcaves | Ambushed by angry Subdweller bent on revenge 2823 | -10/Subcaves | Core integrity fell below 20% 3119 | -10/Subcaves | Build established: Mutant 3342 | -10/Subcaves | Visited 4L-MR0's lab 3362 | -10/Subcaves | Found Tower Shield 3943 | -10/Subcaves | Curiously followed by a Cobbler waking with a query about "LVR3C" 4098 | -10/Subcaves | Entered Materials 4098 | -8/Materials | Evolved 4 slots: Propulsion x2, Utility x2 4099 | -8/Materials | Loaded intel: 1 garrison access location 4352 | -8/Materials | Attached Tower Shield, gained temporary slots: Power, Propulsion x2, Utility x2, Weapon x2 4409 | -8/Materials | Build established: Scavenger-Mutant 5091 | -8/Materials | Discovered new exit (range 4) 5371 | -8/Materials | Learned Factory security intel 5457 | -8/Materials | Learned location of 1 exit from Lower Caves 5512 | -8/Materials | Learned Factory fabricator intel 5513 | -8/Materials | Learned 12 Factory zone layouts 5522 | -8/Materials | Learned Factory trap positions 5542 | -8/Materials | Identified exit to Factory 5572 | -8/Materials | Learned location of 1 exit from Lower Caves 6779 | -8/Materials | Identified exit to Garrison 6779 | -8/Materials | Entered Garrison 6801 | -8/Garrison | Triggered checkpoint 6909 | -8/Garrison | Discovered new exit (range 5) 7025 | -8/Garrison | Triggered checkpoint 7175 | -8/Garrison | Triggered checkpoint 7218 | -8/Garrison | Lost 3 parts (2n1w) 7249 | -8/Garrison | Triggered checkpoint 7265 | -8/Garrison | Core integrity fell below 50% 7292 | -8/Garrison | System corruption reached 10% 7493 | -8/Garrison | Discovered new exit (range 10) 7622 | -8/Garrison | Triggered checkpoint 7730 | -8/Garrison | Discovered new exit (range 16) 7901 | -8/Garrison | Triggered checkpoint 7976 | -8/Garrison | Installed Relay Interface Framework 7988 | -8/Garrison | Garrison Relay disabled 8075 | -8/Garrison | Triggered checkpoint 8117 | -8/Garrison | Garrison Relay disabled 8122 | -8/Garrison | System corruption reached 30% 8239 | -8/Garrison | Triggered checkpoint 8272 | -8/Garrison | Triggered checkpoint 8283 | -8/Garrison | Core integrity fell below 20% 8332 | -8/Garrison | Lost 5 parts (1p1n2u1w) 8653 | -8/Garrison | Triggered checkpoint 8673 | -8/Garrison | Destroyed by P-60 Hacker with Shock Rifle Last Messages --------------- 08627_ CLO 7=37&9&Y1KB SSGJD,C46NDRSTJ 08642_ System corrupted: Substantial component data lost. 08653_ Beams of light sweep through the air. An alarm sounds. 08656_ Slug penetrates Y-45 Defender. 08657_ IBN7W BS>DFD1D1MR7KRJP,:R0 GPL=PI 08659_ P-60 Hacker resets Y-45 Defender, system corruption cleaned. 08659_ Slug penetrates Wall. 08659_ Y-45 Defender Unknown Device blasted off. 08662_ Slug penetrates Y-45 Defender. 08665_ Y-45 Defender destroyed. 08668_ P-60 Hacker resets P-60 Hacker, system corruption cleaned. 08668_ Slug penetrates P-60 Hacker. 08669_ Acquired 1 matter. 08671_ Slug penetrates P-60 Hacker. 08671_ P-60 Hacker destroyed. 08673_ System corrupted: Lgt. Treads rejected. Map ----- +----------------------------------------------------+ | | | | | | | | | | | | | | | ????????????????????????????????????????????? | | ????????????????????????????????????????????? | | ????????????????????????????????????????????? | | ????????????????????????????????????????????? | | ????????????????????????????????????????????? | | ????????????????????????????????????????????? | | ????????????????????????????????????????????? | | ????????????????????????????????????????????? | | ????????????????????????????????????????????? | | ????????????????????????????????????????????? | | ????????????????????????????????????????????? | | ????????????????????????????????????????????? | | ????????????????????????????????????????????? | | ????????????????????????#???????????????????? | | ???????????????????????+##??????????????????? | | ??????????????????????[ #??????????????????? | | ????????????????######*=|##### #??????????? | | ????????????????# %!!p% #????????? | | ????????????????# @[=p! ^ #????????? | | ????????????????# ##########???????????????? | | ????????????????# #????????????????????????? | | ?????????# #### #################????????? | | ?????????# #????????? | | ?????????# #????????? | | ????? #????????? | | ???? ######################## #????????? | | ???????????????????????????????# #????????? | | ???????????????????????????????# #????????? | | ???????????????????????????????# #????????? | | ???????????????????????????????# #????????? | | ???????????????????????????????# #????????? | | ???????????????????????????????# #????????? | | ???????????????????????????????# #????????? | | ???????????????????????????????# #????????? | | ???????????????????????????????# #????????? | | ???????????????????????????????# #????????? | | ???????????????????????????????# #????????? | | ???????????????????????????????# #????????? | | ???????????????????????????????# #????????? | | ???????????????????????????????# #????????? | | ???????????????????????????????# #????????? | | ???????????????????????????????# #????????? | | ???????????????????????????????# ########## | +----------------------------------------------------+ Best States ------------- Heat Dissipation 58 Energy Generation 23 Energy Capacity 300 Matter Stores 300 Matter Capacity 300 Sight Range 16 Terrain Scan Range 16 Terrain Scan Density 10 Armor Coverage 2600 Evasion (%) 44 Targeting Accuracy 8 Recoil Reduction 5 Item Schematics ----------------- None Robot Schematics ------------------ None Fabricated ------------ Nothing Repaired ---------- Nothing Studied --------- None Alien Tech Used ----------------- None Achievements -------------- Art Critic Turtlemind Challenges ------------ None Game ------ Seed RingSiegeLaser Manual? 0 Play Time 01:20:36 Cumulative 75.4 hours Start 2025.11.06 @ 01:23:29 End 2025.11.06 @ 02:43:34 Sessions 1 Manual Loads 0 Difficulty Rogue Special Mode None Game No. 66 Rogue 66 Adventurer 0 Explorer 0 Win Type - Total 0 Types 0/0/0/0/0/0/0/0/0/0 Lore% 27 Gallery% 40 Achievement% 29 Wizard Run 0 Options --------- Layout 2 ASCII 0 Keyboard 0 Movement Mouse Keybinds 0 Fullscreen 2 Font 24/Terminus Map View 50x44 Zoom Use 0% Tactical HUD 1 Map Filters NONE Filters NONE Steam 1 RUN: b6efdf79-4b13-4330-95f8-7b40786a1ced